[Event "*** Titled Tuesday Blitz"]
[Site "Chess.com"]
[Date "2020.04.28"]
[Round "1"]
[White "SlavenPastar"]
[Black "GMKrikor"]
[Result "0-1"]
[WhiteElo "2374"]
[BlackElo "2712"]
[TimeControl "180+1"]
[EndTime "10:07:48 PDT"]
[Termination "GMKrikor won on time"]

1. d4 {[%clk 0:02:58.8]} 1... Nf6 {[%clk 0:02:59.2]} 2. c4 {[%clk 0:02:58.2]}
2... g6 {[%clk 0:02:53.8]} 3. Nc3 {[%clk 0:02:56.7]} 3... d5 {[%clk 0:02:54]} 4.
cxd5 {[%clk 0:02:47.3]} 4... Nxd5 {[%clk 0:02:54.9]} 5. Qb3 {[%clk 0:02:46.5]}
5... Nb6 {[%clk 0:02:54.2]} 6. e3 {[%clk 0:02:45.4]} 6... Bg7 {[%clk 0:02:50.6]}
7. Nf3 {[%clk 0:02:45.5]} 7... O-O {[%clk 0:02:50.2]} 8. Be2 {[%clk 0:02:45.8]}
8... N8d7 {[%clk 0:02:50.8]} 9. O-O {[%clk 0:02:33.1]} 9... c5 {[%clk
0:02:50.9]} 10. Rd1 {[%clk 0:02:31.9]} 10... cxd4 {[%clk 0:02:25.8]} 11. Nxd4
{[%clk 0:02:28.4]} 11... Nc5 {[%clk 0:02:24.6]} 12. Qb4 {[%clk 0:02:14.7]} 12...
Ncd7 {[%clk 0:02:19.3]} 13. a4 {[%clk 0:01:49.1]} 13... e6 {[%clk 0:02:15.7]}
14. a5 {[%clk 0:01:47.7]} 14... Nd5 {[%clk 0:02:13.3]} 15. Nxd5 {[%clk
0:01:48.2]} 15... exd5 {[%clk 0:02:14.2]} 16. b3 {[%clk 0:01:19.4]} 16... a6
{[%clk 0:02:12.8]} 17. Ba3 {[%clk 0:01:16.1]} 17... Re8 {[%clk 0:02:12]} 18.
Rac1 {[%clk 0:01:12.2]} 18... Ne5 {[%clk 0:01:55.6]} 19. Qd6 {[%clk 0:01:07]}
19... Qxa5 {[%clk 0:01:37.1]} 20. Bb4 {[%clk 0:01:06.4]} 20... Qd8 {[%clk
0:01:37.2]} 21. Nf3 {[%clk 0:00:58.7]} 21... Nc6 {[%clk 0:01:13.9]} 22. Ba3
{[%clk 0:00:51.2]} 22... Qxd6 {[%clk 0:01:07.4]} 23. Bxd6 {[%clk 0:00:52.1]}
23... Be6 {[%clk 0:01:07.7]} 24. Ng5 {[%clk 0:00:45.3]} 24... Rad8 {[%clk
0:01:05.2]} 25. Nxe6 {[%clk 0:00:43.3]} 25... fxe6 {[%clk 0:01:02.4]} 26. Bc7
{[%clk 0:00:41]} 26... Rc8 {[%clk 0:01:02.4]} 27. Bb6 {[%clk 0:00:40.4]} 27...
Kf7 {[%clk 0:00:55.5]} 28. f3 {[%clk 0:00:38]} 28... Be5 {[%clk 0:00:47.1]} 29.
g3 {[%clk 0:00:34.4]} 29... Bc7 {[%clk 0:00:46]} 30. Bc5 {[%clk 0:00:33.1]}
30... Bd8 {[%clk 0:00:46.2]} 31. Kf2 {[%clk 0:00:27.6]} 31... Be7 {[%clk
0:00:44.3]} 32. Bb6 {[%clk 0:00:26.9]} 32... Ba3 {[%clk 0:00:43.9]} 33. Ra1
{[%clk 0:00:25.8]} 33... Be7 {[%clk 0:00:41.7]} 34. Ra4 {[%clk 0:00:21.9]} 34...
Nb4 {[%clk 0:00:36.7]} 35. Ba5 {[%clk 0:00:19.2]} 35... Nc6 {[%clk 0:00:36.7]}
36. Bb6 {[%clk 0:00:17.5]} 36... Bd8 {[%clk 0:00:37.1]} 37. Bc5 {[%clk
0:00:15.5]} 37... Bf6 {[%clk 0:00:32.6]} 38. e4 {[%clk 0:00:13.9]} 38... dxe4
{[%clk 0:00:29.9]} 39. fxe4 {[%clk 0:00:14.5]} 39... Red8 {[%clk 0:00:29.8]} 40.
Bb6 {[%clk 0:00:10.8]} 40... Rxd1 {[%clk 0:00:27.1]} 41. Bxd1 {[%clk 0:00:11.7]}
41... Bd8 {[%clk 0:00:26.7]} 42. Bc5 {[%clk 0:00:11.9]} 42... Bc7 {[%clk
0:00:26]} 43. Be2 {[%clk 0:00:11.1]} 43... Rd8 {[%clk 0:00:26.1]} 44. Be3 {[%clk
0:00:10.4]} 44... Be5 {[%clk 0:00:26]} 45. Ra2 {[%clk 0:00:07.5]} 45... Bd4
{[%clk 0:00:26.3]} 46. Bxd4 {[%clk 0:00:02.4]} 46... Rxd4 {[%clk 0:00:24.9]} 47.
Ke3 {[%clk 0:00:02]} 47... Rb4 {[%clk 0:00:22.5]} 48. Bd1 {[%clk 0:00:02.2]}
48... Ke7 {[%clk 0:00:19.1]} 0-1

[Event "*** Titled Tuesday Blitz"]
[Site "Chess.com"]
[Date "2020.04.28"]
[Round "1"]
[White "kleopl"]
[Black "TheMightyBishops"]
[Result "1-0"]
[WhiteElo "2483"]
[BlackElo "2002"]
[TimeControl "180+1"]
[EndTime "10:07:49 PDT"]
[Termination "kleopl won on time"]

1. c4 {[%clk 0:03:00.9]} 1... c5 {[%clk 0:02:57.8]} 2. Nf3 {[%clk 0:03:00.1]}
2... Nc6 {[%clk 0:02:57.2]} 3. Nc3 {[%clk 0:02:59.2]} 3... e5 {[%clk 0:02:56.8]}
4. e3 {[%clk 0:02:57]} 4... Nf6 {[%clk 0:02:45.2]} 5. d4 {[%clk 0:02:55.7]} 5...
cxd4 {[%clk 0:02:37.2]} 6. exd4 {[%clk 0:02:56.6]} 6... e4 {[%clk 0:02:37.2]} 7.
Ne5 {[%clk 0:02:49.3]} 7... d5 {[%clk 0:02:34.4]} 8. cxd5 {[%clk 0:02:38.2]}
8... Nxd5 {[%clk 0:02:26.6]} 9. Nxe4 {[%clk 0:02:20]} 9... Be6 {[%clk
0:01:54.5]} 10. Nxc6 {[%clk 0:02:15.6]} 10... bxc6 {[%clk 0:01:54.3]} 11. Be2
{[%clk 0:02:08]} 11... Be7 {[%clk 0:01:32.7]} 12. O-O {[%clk 0:02:07.4]} 12...
O-O {[%clk 0:01:32.6]} 13. Bf3 {[%clk 0:01:58.6]} 13... Rc8 {[%clk 0:01:24.7]}
14. Bd2 {[%clk 0:01:51.9]} 14... f5 {[%clk 0:01:18.8]} 15. Nc5 {[%clk
0:01:49.1]} 15... Bxc5 {[%clk 0:01:18.6]} 16. dxc5 {[%clk 0:01:50]} 16... f4
{[%clk 0:01:18.4]} 17. b4 {[%clk 0:01:46.6]} 17... a6 {[%clk 0:01:17.4]} 18. Re1
{[%clk 0:01:45.7]} 18... Bd7 {[%clk 0:01:10.3]} 19. a3 {[%clk 0:01:39.3]} 19...
Qg5 {[%clk 0:01:08.3]} 20. Qb3 {[%clk 0:01:33.8]} 20... Kh8 {[%clk 0:01:07.2]}
21. Rad1 {[%clk 0:01:32.2]} 21... Nf6 {[%clk 0:00:53.4]} 22. Bc3 {[%clk
0:01:25.5]} 22... Bg4 {[%clk 0:00:52.6]} 23. Bxf6 {[%clk 0:01:22.1]} 23... Rxf6
{[%clk 0:00:52.2]} 24. Rd4 {[%clk 0:00:55.9]} 24... Rcf8 {[%clk 0:00:50.4]} 25.
Rde4 {[%clk 0:00:53.1]} 25... Bd7 {[%clk 0:00:31.3]} 26. Re7 {[%clk 0:00:49.9]}
26... Bh3 {[%clk 0:00:12.5]} 27. Re8 {[%clk 0:00:29.5]} 27... Bxg2 {[%clk
0:00:11.8]} 28. Rxf8+ {[%clk 0:00:26.7]} 28... Rxf8 {[%clk 0:00:11.4]} 29. Bxg2
{[%clk 0:00:26.7]} 29... Qg6 {[%clk 0:00:09.5]} 30. Qf3 {[%clk 0:00:25.8]} 30...
h6 {[%clk 0:00:08.2]} 31. Qxc6 {[%clk 0:00:23.4]} 31... Qc2 {[%clk 0:00:07.6]}
32. Qe4 {[%clk 0:00:20.8]} 32... Qb3 {[%clk 0:00:07.2]} 33. Qe7 {[%clk
0:00:17.3]} 33... Rf7 {[%clk 0:00:06.2]} 34. Qe8+ {[%clk 0:00:16.5]} 34... Kh7
{[%clk 0:00:06.3]} 35. Be4+ {[%clk 0:00:16]} 35... g6 {[%clk 0:00:06.6]} 36. Bb1
{[%clk 0:00:12.2]} 36... Qd5 {[%clk 0:00:04.2]} 37. Qe6 {[%clk 0:00:09.2]} 37...
Qg5+ {[%clk 0:00:03.9]} 38. Kh1 {[%clk 0:00:09.5]} 38... Rf6 {[%clk 0:00:02.3]}
39. Qe7+ {[%clk 0:00:09.4]} 1-0

[Event "*** Titled Tuesday Blitz"]
[Site "Chess.com"]
[Date "2020.04.28"]
[Round "1"]
[White "Poghosyan_Suren"]
[Black "mohssenbinaddi"]
[Result "1-0"]
[WhiteElo "2515"]
[BlackElo "2133"]
[TimeControl "180+1"]
[EndTime "10:07:51 PDT"]
[Termination "Poghosyan_Suren won on time"]

1. Nf3 {[%clk 0:03:00.9]} 1... c6 {[%clk 0:03:00.9]} 2. c4 {[%clk 0:03:00.1]}
2... d5 {[%clk 0:03:01.8]} 3. d4 {[%clk 0:02:58.8]} 3... Nf6 {[%clk 0:03:01.5]}
4. Nc3 {[%clk 0:02:59]} 4... dxc4 {[%clk 0:03:01.5]} 5. a4 {[%clk 0:02:59.6]}
5... Bf5 {[%clk 0:03:00.9]} 6. Ne5 {[%clk 0:02:59.7]} 6... Nbd7 {[%clk
0:02:59.4]} 7. Nxc4 {[%clk 0:02:59.7]} 7... a5 {[%clk 0:02:57.5]} 8. f3 {[%clk
0:02:54.8]} 8... Bg6 {[%clk 0:02:34.9]} 9. e4 {[%clk 0:02:52.6]} 9... Qc7 {[%clk
0:02:33.1]} 10. Bg5 {[%clk 0:02:45.9]} 10... e5 {[%clk 0:02:29.2]} 11. Bxf6
{[%clk 0:02:42.1]} 11... gxf6 {[%clk 0:02:27.9]} 12. d5 {[%clk 0:02:41.7]} 12...
Bb4 {[%clk 0:02:24.3]} 13. d6 {[%clk 0:02:31.7]} 13... Qb8 {[%clk 0:02:12.8]}
14. h4 {[%clk 0:02:16.7]} 14... h5 {[%clk 0:02:11.1]} 15. Be2 {[%clk 0:02:00.6]}
15... Qa7 {[%clk 0:01:23.4]} 16. Qd3 {[%clk 0:01:53.4]} 16... O-O-O {[%clk
0:01:17.7]} 17. O-O-O {[%clk 0:01:49.9]} 17... Nc5 {[%clk 0:01:13]} 18. Qe3
{[%clk 0:01:47.5]} 18... Nb3+ {[%clk 0:01:08]} 19. Kb1 {[%clk 0:01:41.6]} 19...
Qxe3 {[%clk 0:01:04.5]} 20. Nxe3 {[%clk 0:01:42.5]} 20... Rxd6 {[%clk
0:00:59.4]} 21. Rxd6 {[%clk 0:01:37.7]} 21... Bxd6 {[%clk 0:00:55.2]} 22. Bc4
{[%clk 0:01:37]} 22... Nd2+ {[%clk 0:00:49.9]} 23. Kc2 {[%clk 0:01:36.5]} 23...
Nxc4 {[%clk 0:00:47.8]} 24. Nxc4 {[%clk 0:01:36]} 24... Bc7 {[%clk 0:00:47.7]}
25. Ne3 {[%clk 0:01:16.4]} 25... Rd8 {[%clk 0:00:44.8]} 26. Nf5 {[%clk
0:01:12.1]} 26... Bb6 {[%clk 0:00:34.8]} 27. g4 {[%clk 0:01:09.3]} 27... Kc7
{[%clk 0:00:28.7]} 28. Ng3 {[%clk 0:01:02.5]} 28... hxg4 {[%clk 0:00:25.8]} 29.
fxg4 {[%clk 0:01:03.4]} 29... Bf2 {[%clk 0:00:25.7]} 30. Nf5 {[%clk 0:01:03.1]}
30... Bxf5 {[%clk 0:00:25.1]} 31. exf5 {[%clk 0:01:04]} 31... Rd4 {[%clk
0:00:23.7]} 32. h5 {[%clk 0:00:59.2]} 32... Rd8 {[%clk 0:00:18.5]} 33. h6 {[%clk
0:00:54.8]} 33... Rh8 {[%clk 0:00:18.3]} 34. Ne4 {[%clk 0:00:54.2]} 34... Be3
{[%clk 0:00:17.8]} 35. h7 {[%clk 0:00:54.3]} 35... Bg5 {[%clk 0:00:16.8]} 36.
Kd3 {[%clk 0:00:47.9]} 36... Kd7 {[%clk 0:00:16.1]} 37. Kc4 {[%clk 0:00:47.8]}
37... b6 {[%clk 0:00:15.3]} 38. b4 {[%clk 0:00:46.7]} 38... axb4 {[%clk
0:00:13.6]} 39. Kxb4 {[%clk 0:00:47.6]} 39... Ke7 {[%clk 0:00:12.2]} 40. Kc4
{[%clk 0:00:27.5]} 40... Kf8 {[%clk 0:00:12]} 41. Rb1 {[%clk 0:00:27.5]} 41...
b5+ {[%clk 0:00:10.5]} 42. Kc5 {[%clk 0:00:23.7]} 42... bxa4 {[%clk 0:00:09.5]}
43. Nxg5 {[%clk 0:00:16.1]} 43... fxg5 {[%clk 0:00:08.6]} 44. f6 {[%clk
0:00:17]} 1-0

[Event "*** Titled Tuesday Blitz"]
[Site "Chess.com"]
[Date "2020.04.28"]
[Round "1"]
[White "lolo9292"]
[Black "TigrVShlyape"]
[Result "1-0"]
[WhiteElo "2456"]
[BlackElo "2840"]
[TimeControl "180+1"]
[EndTime "10:07:52 PDT"]
[Termination "lolo9292 won by resignation"]

1. d4 {[%clk 0:03:00.9]} 1... d5 {[%clk 0:02:53.9]} 2. c4 {[%clk 0:03:00.7]}
2... c6 {[%clk 0:02:53.2]} 3. cxd5 {[%clk 0:02:59.7]} 3... cxd5 {[%clk
0:02:52.8]} 4. Bg5 {[%clk 0:03:00.2]} 4... Nc6 {[%clk 0:02:45.8]} 5. Nc3 {[%clk
0:02:59.6]} 5... Nf6 {[%clk 0:02:45.7]} 6. Bxf6 {[%clk 0:02:58.8]} 6... gxf6
{[%clk 0:02:45.3]} 7. e3 {[%clk 0:02:58.7]} 7... e6 {[%clk 0:02:42.3]} 8. Bd3
{[%clk 0:02:57.9]} 8... Bd7 {[%clk 0:02:35.8]} 9. f4 {[%clk 0:02:58]} 9... f5
{[%clk 0:02:31.3]} 10. Nf3 {[%clk 0:02:57.8]} 10... Be7 {[%clk 0:02:20.1]} 11.
O-O {[%clk 0:02:58.1]} 11... Qb6 {[%clk 0:02:17.5]} 12. a3 {[%clk 0:02:55.7]}
12... Rc8 {[%clk 0:02:11.6]} 13. Qe2 {[%clk 0:02:52.3]} 13... Qc7 {[%clk
0:02:02.2]} 14. Kh1 {[%clk 0:02:47.3]} 14... Na5 {[%clk 0:01:55.6]} 15. Rac1
{[%clk 0:02:47]} 15... Qd8 {[%clk 0:01:50]} 16. Ne5 {[%clk 0:02:45.9]} 16... Nc6
{[%clk 0:01:48.7]} 17. Nf3 {[%clk 0:02:43.9]} 17... Bd6 {[%clk 0:01:45.5]} 18.
Nb5 {[%clk 0:02:43]} 18... Bb8 {[%clk 0:01:42.8]} 19. Ng5 {[%clk 0:02:41.7]}
19... Qf6 {[%clk 0:01:40.6]} 20. Qh5 {[%clk 0:02:38.3]} 20... Qg6 {[%clk
0:01:40]} 21. Qh3 {[%clk 0:02:37.5]} 21... h6 {[%clk 0:01:38.3]} 22. Nf3 {[%clk
0:02:37.6]} 22... Qg4 {[%clk 0:01:34.9]} 23. Qxg4 {[%clk 0:02:36.4]} 23... fxg4
{[%clk 0:01:35.1]} 24. Ne5 {[%clk 0:02:36.8]} 24... f5 {[%clk 0:01:32.8]} 25.
Nxc6 {[%clk 0:02:32.4]} 25... Rxc6 {[%clk 0:01:30.9]} 26. h3 {[%clk 0:02:28.2]}
26... h5 {[%clk 0:01:30]} 27. Kh2 {[%clk 0:02:26.9]} 27... Ke7 {[%clk
0:01:29.2]} 28. Rxc6 {[%clk 0:02:21.2]} 28... Bxc6 {[%clk 0:01:28.7]} 29. Nc3
{[%clk 0:02:21.7]} 29... a6 {[%clk 0:01:25.2]} 30. Rh1 {[%clk 0:02:21]} 30...
Kf6 {[%clk 0:01:15.8]} 31. Kg3 {[%clk 0:02:21.1]} 31... h4+ {[%clk 0:01:14.6]}
32. Kf2 {[%clk 0:02:21]} 32... g3+ {[%clk 0:01:15.1]} 33. Kf3 {[%clk 0:02:18.5]}
33... Bd6 {[%clk 0:01:15.2]} 34. Rc1 {[%clk 0:02:15.4]} 34... Rc8 {[%clk
0:01:14.1]} 35. Na2 {[%clk 0:02:13.4]} 35... Bd7 {[%clk 0:01:11.7]} 36. Rxc8
{[%clk 0:02:13.8]} 36... Bxc8 {[%clk 0:01:11.7]} 37. Ke2 {[%clk 0:02:13.8]}
37... Bd7 {[%clk 0:01:10.9]} 38. Nc1 {[%clk 0:02:13.5]} 38... Ke7 {[%clk
0:01:08.5]} 39. Nb3 {[%clk 0:02:13.2]} 39... Be8 {[%clk 0:01:06.6]} 40. Nd2
{[%clk 0:02:13.5]} 40... Kd8 {[%clk 0:01:02.9]} 41. Kd1 {[%clk 0:02:11.6]} 41...
Kc7 {[%clk 0:01:02.5]} 42. Be2 {[%clk 0:02:09.2]} 42... Be7 {[%clk 0:01:02]} 43.
Kc2 {[%clk 0:02:02.9]} 43... Ba4+ {[%clk 0:01:01.2]} 44. b3 {[%clk 0:02:02.6]}
44... Be8 {[%clk 0:01:01]} 45. b4 {[%clk 0:02:02.7]} 45... a5 {[%clk 0:00:56.8]}
46. Kc3 {[%clk 0:02:02.4]} 46... axb4+ {[%clk 0:00:56.4]} 47. axb4 {[%clk
0:02:03.3]} 47... b6 {[%clk 0:00:55.7]} 48. Nf3 {[%clk 0:02:02.4]} 48... Bf6
{[%clk 0:00:54.4]} 49. Ne1 {[%clk 0:01:55.9]} 49... Be7 {[%clk 0:00:54]} 50. Nd3
{[%clk 0:01:52.6]} 50... Bf6 {[%clk 0:00:52.7]} 51. Ne1 {[%clk 0:01:45.7]} 51...
Be7 {[%clk 0:00:52]} 52. Bd3 {[%clk 0:01:45.3]} 52... Bh5 {[%clk 0:00:50.6]} 53.
Nc2 {[%clk 0:01:43.2]} 53... Bd1 {[%clk 0:00:48.8]} 54. Na3 {[%clk 0:01:41.3]}
54... Bf3 {[%clk 0:00:45.8]} 55. Bf1 {[%clk 0:01:40.3]} 55... Be4 {[%clk
0:00:45.7]} 56. Nb5+ {[%clk 0:01:36.6]} 56... Kd7 {[%clk 0:00:45.3]} 57. Kb3
{[%clk 0:01:36.7]} 57... Kc6 {[%clk 0:00:44.2]} 58. Nc3 {[%clk 0:01:36.9]} 58...
Kc7 {[%clk 0:00:41.7]} 59. Ka4 {[%clk 0:01:34]} 59... Kc6 {[%clk 0:00:39.7]} 60.
Bb5+ {[%clk 0:01:32.9]} 60... Kc7 {[%clk 0:00:39.7]} 61. Bf1 {[%clk 0:01:33.8]}
61... Kc6 {[%clk 0:00:38.2]} 62. Nxe4 {[%clk 0:01:28]} 62... fxe4 {[%clk
0:00:37.8]} 63. Bb5+ {[%clk 0:01:28.3]} 63... Kc7 {[%clk 0:00:37]} 64. Be8
{[%clk 0:01:28.1]} 64... Kd8 {[%clk 0:00:36.2]} 65. Bf7 {[%clk 0:01:27.2]} 65...
Kd7 {[%clk 0:00:36.5]} 66. Bh5 {[%clk 0:01:27.4]} 66... Bd6 {[%clk 0:00:36.2]}
67. Kb5 {[%clk 0:01:26.5]} 67... Ke7 {[%clk 0:00:36.3]} 68. Bg4 {[%clk
0:01:25.7]} 68... Kd7 {[%clk 0:00:35]} 69. f5 {[%clk 0:01:22.7]} 69... exf5
{[%clk 0:00:34.6]} 70. Bxf5+ {[%clk 0:01:23.6]} 70... Ke7 {[%clk 0:00:33.7]} 71.
Kc6 {[%clk 0:01:23.3]} 71... Bxb4 {[%clk 0:00:33.2]} 72. Kxd5 {[%clk 0:01:23.4]}
72... Bd2 {[%clk 0:00:24.2]} 73. Kxe4 {[%clk 0:01:24.3]} 73... b5 {[%clk
0:00:23.9]} 74. Kd3 {[%clk 0:01:23.5]} 74... Bc1 {[%clk 0:00:23.1]} 75. Bg4
{[%clk 0:01:22.5]} 75... b4 {[%clk 0:00:23.1]} 76. Bd1 {[%clk 0:01:22.8]} 76...
Kd6 {[%clk 0:00:21.8]} 77. e4 {[%clk 0:01:22.7]} 77... Bb2 {[%clk 0:00:21.5]}
78. e5+ {[%clk 0:01:22]} 78... Ke7 {[%clk 0:00:21.5]} 79. Ke4 {[%clk 0:01:21.5]}
1-0

[Event "*** Titled Tuesday Blitz"]
[Site "Chess.com"]
[Date "2020.04.28"]
[Round "1"]
[White "elisak43"]
[Black "ElGasanov"]
[Result "0-1"]
[WhiteElo "2384"]
[BlackElo "2722"]
[TimeControl "180+1"]
[EndTime "10:07:52 PDT"]
[Termination "ElGasanov won by resignation"]

1. e4 {[%clk 0:03:00.2]} 1... c5 {[%clk 0:02:58]} 2. Nf3 {[%clk 0:02:58]} 2...
Nc6 {[%clk 0:02:58]} 3. c4 {[%clk 0:02:56.2]} 3... e5 {[%clk 0:02:52.6]} 4. Nc3
{[%clk 0:02:56.2]} 4... d6 {[%clk 0:02:50.9]} 5. d3 {[%clk 0:02:56.5]} 5... Be7
{[%clk 0:02:49.6]} 6. Be2 {[%clk 0:02:55.5]} 6... f5 {[%clk 0:02:49.1]} 7. O-O
{[%clk 0:02:54.6]} 7... Nf6 {[%clk 0:02:48.3]} 8. Bg5 {[%clk 0:02:50.4]} 8...
O-O {[%clk 0:02:43.5]} 9. Re1 {[%clk 0:02:39.1]} 9... Nd4 {[%clk 0:02:33.9]} 10.
Nxd4 {[%clk 0:02:36.5]} 10... cxd4 {[%clk 0:02:32.1]} 11. Bxf6 {[%clk
0:02:36.9]} 11... Bxf6 {[%clk 0:02:28.2]} 12. Nd5 {[%clk 0:02:36.2]} 12... fxe4
{[%clk 0:02:27.2]} 13. dxe4 {[%clk 0:02:34.1]} 13... Be6 {[%clk 0:02:22]} 14.
Bg4 {[%clk 0:02:33.8]} 14... Bf7 {[%clk 0:02:07.2]} 15. Qd3 {[%clk 0:02:28]}
15... Bg5 {[%clk 0:02:06.5]} 16. g3 {[%clk 0:02:20.2]} 16... Kh8 {[%clk
0:02:05.8]} 17. f4 {[%clk 0:02:18.2]} 17... Bxd5 {[%clk 0:01:53.6]} 18. exd5
{[%clk 0:01:40.6]} 18... exf4 {[%clk 0:01:53.1]} 19. Rf1 {[%clk 0:01:10]} 19...
fxg3 {[%clk 0:01:49.1]} 20. hxg3 {[%clk 0:01:09.6]} 20... Be3+ {[%clk 0:01:46]}
21. Kg2 {[%clk 0:01:09.8]} 21... Qg5 {[%clk 0:01:46.5]} 22. Rxf8+ {[%clk
0:01:03.7]} 22... Rxf8 {[%clk 0:01:45.9]} 23. Rf1 {[%clk 0:01:04.3]} 23... Qe7
{[%clk 0:00:50]} 24. Rxf8+ {[%clk 0:00:53.2]} 24... Qxf8 {[%clk 0:00:50.9]} 25.
Qf5 {[%clk 0:00:53.8]} 25... Qxf5 {[%clk 0:00:48.7]} 26. Bxf5 {[%clk 0:00:53.9]}
26... g6 {[%clk 0:00:48.9]} 27. Bd3 {[%clk 0:00:43.3]} 27... a5 {[%clk
0:00:46.6]} 28. b3 {[%clk 0:00:36.3]} 28... Kg7 {[%clk 0:00:46.7]} 29. Kf3
{[%clk 0:00:31.3]} 29... Kf6 {[%clk 0:00:47]} 30. Ke4 {[%clk 0:00:25.8]} 30...
h5 {[%clk 0:00:46.9]} 31. a3 {[%clk 0:00:25.8]} 31... g5 {[%clk 0:00:45.5]} 32.
b4 {[%clk 0:00:25]} 32... a4 {[%clk 0:00:42.8]} 33. Bc2 {[%clk 0:00:24.9]} 33...
h4 {[%clk 0:00:42.4]} 34. gxh4 {[%clk 0:00:23.1]} 34... gxh4 {[%clk 0:00:43.3]}
35. Bxa4 {[%clk 0:00:20.5]} 35... h3 {[%clk 0:00:43]} 36. Kf3 {[%clk 0:00:21]}
36... h2 {[%clk 0:00:39.2]} 37. Kg2 {[%clk 0:00:20.6]} 37... Bf4 {[%clk
0:00:36.5]} 38. c5 {[%clk 0:00:19.7]} 38... dxc5 {[%clk 0:00:32.8]} 39. bxc5
{[%clk 0:00:20.6]} 39... d3 {[%clk 0:00:33.4]} 40. c6 {[%clk 0:00:18.7]} 40...
b6 {[%clk 0:00:29.5]} 41. Bd1 {[%clk 0:00:16.6]} 41... Ke7 {[%clk 0:00:24.6]}
42. Bf3 {[%clk 0:00:15.2]} 42... Kd6 {[%clk 0:00:23.5]} 43. Be4 {[%clk
0:00:13.4]} 43... d2 {[%clk 0:00:22]} 44. Bf3 {[%clk 0:00:14.3]} 44... Kc5
{[%clk 0:00:19.1]} 45. a4 {[%clk 0:00:11.8]} 45... Kb4 {[%clk 0:00:18.1]} 46.
Bd1 {[%clk 0:00:12]} 46... Kc3 {[%clk 0:00:18.1]} 47. Be2 {[%clk 0:00:03.3]}
47... Kc2 {[%clk 0:00:17.8]} 48. Kf3 {[%clk 0:00:03.4]} 48... h1=Q+ {[%clk
0:00:17]} 49. Kxf4 {[%clk 0:00:04.1]} 49... Qh2+ {[%clk 0:00:16.8]} 50. Ke3
{[%clk 0:00:03.4]} 50... Qe5+ {[%clk 0:00:15.6]} 0-1

[Event "*** Titled Tuesday Blitz"]
[Site "Chess.com"]
[Date "2020.04.28"]
[Round "1"]
[White "dbrankovic68"]
[Black "Evgeny81"]
[Result "0-1"]
[WhiteElo "2345"]
[BlackElo "2679"]
[TimeControl "180+1"]
[EndTime "10:07:52 PDT"]
[Termination "Evgeny81 won by resignation"]

1. e4 {[%clk 0:02:59.2]} 1... e6 {[%clk 0:02:59]} 2. Qe2 {[%clk 0:02:57.6]} 2...
c5 {[%clk 0:02:55.1]} 3. Nf3 {[%clk 0:02:57.5]} 3... Nc6 {[%clk 0:02:55.2]} 4.
g3 {[%clk 0:02:57.9]} 4... g6 {[%clk 0:02:51.5]} 5. Bg2 {[%clk 0:02:58.3]} 5...
Bg7 {[%clk 0:02:51.9]} 6. O-O {[%clk 0:02:58.7]} 6... Nge7 {[%clk 0:02:52.1]} 7.
d3 {[%clk 0:02:59.2]} 7... O-O {[%clk 0:02:51.5]} 8. Re1 {[%clk 0:02:59.5]} 8...
d5 {[%clk 0:02:51.4]} 9. h4 {[%clk 0:02:55]} 9... b6 {[%clk 0:02:49.6]} 10. e5
{[%clk 0:02:53.3]} 10... Qc7 {[%clk 0:02:34.8]} 11. Nbd2 {[%clk 0:02:47.3]}
11... Ba6 {[%clk 0:02:26.3]} 12. c3 {[%clk 0:02:27.6]} 12... b5 {[%clk
0:02:15.6]} 13. Nf1 {[%clk 0:02:27.4]} 13... b4 {[%clk 0:02:14.6]} 14. N1h2
{[%clk 0:02:25.6]} 14... h5 {[%clk 0:02:14.1]} 15. g4 {[%clk 0:02:18.3]} 15...
hxg4 {[%clk 0:02:13.4]} 16. Nxg4 {[%clk 0:02:18.3]} 16... bxc3 {[%clk
0:02:13.3]} 17. bxc3 {[%clk 0:02:17.7]} 17... Nf5 {[%clk 0:02:12.9]} 18. Nf6+
{[%clk 0:02:13.7]} 18... Bxf6 {[%clk 0:02:06.9]} 19. exf6 {[%clk 0:02:13.2]}
19... Rfe8 {[%clk 0:02:00.4]} 20. Bg5 {[%clk 0:01:58.6]} 20... e5 {[%clk
0:01:58.3]} 21. Qd2 {[%clk 0:01:58.4]} 21... e4 {[%clk 0:01:53.2]} 22. dxe4
{[%clk 0:01:53.9]} 22... dxe4 {[%clk 0:01:53.3]} 23. Nh2 {[%clk 0:01:51.9]}
23... Rad8 {[%clk 0:01:50.9]} 24. Qf4 {[%clk 0:01:40.9]} 24... Qxf4 {[%clk
0:01:43.4]} 25. Bxf4 {[%clk 0:01:40.9]} 25... Bd3 {[%clk 0:01:38.9]} 26. Bg5
{[%clk 0:01:19.6]} 26... Ne5 {[%clk 0:01:35.1]} 27. Bh3 {[%clk 0:01:10.6]} 27...
Kh7 {[%clk 0:01:16.5]} 28. Kg2 {[%clk 0:01:07.2]} 28... Rb8 {[%clk 0:01:09.7]}
29. Ng4 {[%clk 0:00:53.4]} 29... Nf3 {[%clk 0:01:06.1]} 30. Ne3 {[%clk
0:00:43.2]} 30... Nxe1+ {[%clk 0:01:00]} 31. Rxe1 {[%clk 0:00:42.3]} 31... Nxe3+
{[%clk 0:00:59.4]} 32. Rxe3 {[%clk 0:00:42.4]} 32... Bc4 {[%clk 0:00:52.1]} 33.
Bg4 {[%clk 0:00:36.1]} 33... Bxa2 {[%clk 0:00:48.2]} 34. Kg3 {[%clk 0:00:36.1]}
34... Be6 {[%clk 0:00:47.1]} 35. h5 {[%clk 0:00:34]} 35... Bxg4 {[%clk
0:00:43.6]} 36. Kxg4 {[%clk 0:00:34.1]} 36... gxh5+ {[%clk 0:00:43.6]} 37. Kxh5
{[%clk 0:00:34.2]} 37... Re5 {[%clk 0:00:43.9]} 38. Rh3 {[%clk 0:00:30.6]} 38...
Rh8 {[%clk 0:00:31.3]} 39. Kg4+ {[%clk 0:00:27]} 39... Kg8 {[%clk 0:00:30.9]}
40. Re3 {[%clk 0:00:23.9]} 40... Rh1 {[%clk 0:00:30.5]} 41. Kf4 {[%clk
0:00:23.3]} 41... Re6 {[%clk 0:00:27.5]} 42. Re2 {[%clk 0:00:21.7]} 42... Rh3
{[%clk 0:00:20.5]} 43. Rb2 {[%clk 0:00:16.2]} 43... Kh7 {[%clk 0:00:19.1]} 44.
Rb8 {[%clk 0:00:13.2]} 44... Rf3+ {[%clk 0:00:16.3]} 45. Kg4 {[%clk 0:00:13]}
45... Rxf2 {[%clk 0:00:16.5]} 46. Rf8 {[%clk 0:00:07.9]} 46... Rfxf6 {[%clk
0:00:15.9]} 47. Bxf6 {[%clk 0:00:07.1]} 47... Rxf6 {[%clk 0:00:16.3]} 48. Re8
{[%clk 0:00:07.6]} 48... Re6 {[%clk 0:00:14.7]} 49. Rc8 {[%clk 0:00:06.1]} 49...
e3 {[%clk 0:00:14]} 0-1